Cogmind - Beta 15 @@@ ROGUE MODE // 2025.07.30 @ 02:20:23 Player: Inverisimilidude Result: Destroyed by G-50 Soldier with Heavy Laser Performance ------------- Evolutions (5) 2500 Regions Visited (19) 3800 Robots Destroyed (172) 860 Value Destroyed (6259) 6259 Prototype IDs (52) 1040 Alien Tech Used (2) 400 Bonus (6306) 6306 TOTAL SCORE: 21165 Bonus ------- High Alert Combat Kills 238 Follower Combat Kills 2589 Met Data Miner 300 Met Imprinter 300 Was Imprinted 300 Met Warlord at Base 500 MAIN.C Attacked Warlord 500 Warlord Defense Kills 2402 Friendly Fire -823 Cogmind --------- Core Integrity 0/1000 Matter 109/300 Energy 100/100 System Corruption 5% Temperature Cool (18) Movement Core (50) Location -5/Warlord Parts ------- > --- POWER (2) -------- (None) > --- PROPULSION (5) --- (None) > --- UTILITY (7) ------ (None) > --- WEAPON (4) ------- (None) > --- INVENTORY (5) ---- Compact Wheel Improved Signal Interpreter Shock Absorption System Gauss Rifle Advanced Assault Cannon Peak State ------------ > --- POWER ------------ Vortex Chain Reactor > --- PROPULSION ------- Makeshift Leg Makeshift Leg Enhanced Armored Leg Enhanced Biometal Leg Enhanced Biometal Leg > --- UTILITY ---------- High-capacity Storage Unit Advanced Sensor Array Advanced Signal Interpreter Experimental Targeting Computer Hardened Heavy Armor Plating Minesniffer Drone Bay > --- WEAPON ----------- Vortex Shotgun Vortex Shotgun Vortex Rail Vortex Rail > --- INVENTORY -------- Thunder Leg Compact Wheel Experimental Cooling System Matter Compressor Improved Sensor Array Improved Signal Interpreter Matter Filter Hardened Heavy Armor Plating Improved Medium Armor Plating Shock Absorption System Proton Cannon Gauss Rifle Advanced Assault Cannon Gauss Cannon Magnetic Acceleration Cannon Bore Cannon Bore Cannon Enhanced Gauss Cannon Improved Remote Datajack [Rating: 132] Favorites ----------- Power Angular Momentum Engine Engine Angular Momentum Engine Power Core Enhanced Nuclear Core Reactor Zionite Light DM Reactor Propulsion Compact Wheel Treads Medium Treads Leg Flexi-carbon Leg Wheel Compact Wheel Hover Unit Zionite Glidesys I Flight Unit Makeshift Flight Unit Utility Large Storage Unit Device Experimental Heat Sink Storage Large Storage Unit Processor Advanced Signal Interpreter Hackware Makeshift Hacking Suite Protection Hardened Heavy Armor Plating Weapon Enhanced Gauss Cannon Energy Gun Vortex Rail Energy Cannon Improved EM Pulse Cannon Ballistic Gun Minigun Ballistic Cannon Enhanced Gauss Cannon Launcher Shock Bomb Launcher Special Weapon Mining Laser Slashing Weapon Great Axe Piercing Weapon Heavy Pick Build | -11 -10 -9 -8 -7 -7 -7 -7 -6 -6 -6 -6 -6 -6 -6 -5 -5 -5 -5 -5 ------- Run | Yrd Mat Mat Mat Fac Low Low Zio Pro Fac Was Fac Low Low Dat Pro Fac Upp Upp War Slots Evolved 10 | . . 2 2 2 . . . . 2 . . . . . . 2 . . . Power . | . . . . . . . . . . . . . . . . . . . . Propulsion 3 | . . 1 1 1 . . . . . . . . . . . . . . . Utility 5 | . . 1 . 1 . . . . 2 . . . . . . 1 . . . Weapon 2 | . . . 1 . . . . . . . . . . . . 1 . . . Parts Attached 186 | 7 5 19 11 17 7 8 14 9 15 . 4 8 4 . 2 23 6 . 27 Power 13 | 1 1 2 . 1 1 . . 2 1 . 1 1 . . . . . . 2 Engine 9 | 1 . 2 . 1 1 . . 2 . . 1 . . . . . . . 1 Core 2 | . 1 . . . . . . . 1 . . . . . . . . . . Reactor 2 | . . . . . . . . . . . . 1 . . . . . . 1 Propulsion 49 | 2 1 6 5 7 . 1 1 5 3 . 1 2 3 . 2 3 1 . 6 Treads 8 | . . . . . . . . 4 1 . . 1 1 . 1 . . . . Leg 13 | . . . . . . . . 1 1 . 1 . 1 . 1 3 1 . 4 Wheel 24 | 2 1 6 5 7 . 1 . . . . . . 1 . . . . . 1 Hover 2 | . . . . . . . . . 1 . . 1 . . . . . . . Flight 2 | . . . . . . . 1 . . . . . . . . . . . 1 Utility 69 | 2 1 5 2 4 3 2 10 2 8 . 2 3 1 . . 13 3 . 8 Device 30 | 1 . 2 1 2 1 1 2 . 5 . 2 1 . . . 8 . . 4 Storage 8 | 1 1 1 1 . . . . . . . . 1 1 . . 2 . . . Processor 15 | . . 1 . 1 . . 7 . 1 . . 1 . . . 3 . . 1 Hackware 5 | . . . . 1 1 . 1 . . . . . . . . . 1 . 1 Protection 11 | . . 1 . . 1 1 . 2 2 . . . . . . . 2 . 2 Artifact . | . . . . . . . . . . . . . . . . . . . . Weapon 55 | 2 2 6 4 5 3 5 3 . 3 . . 2 . . . 7 2 . 11 Energy Gun 9 | . 1 1 . . . . . . 1 . . 2 . . . . . . 4 Energy Cannon 6 | . . 1 1 . 1 1 . . . . . . . . . 1 . . 1 Ballistic Gun 16 | 2 . 3 2 3 . 3 . . . . . . . . . 2 1 . . Ballistic Cannon 12 | . . . 1 1 . . . . 1 . . . . . . 3 . . 6 Launcher 6 | . . 1 . 1 1 1 2 . . . . . . . . . . . . Special Weapon 3 | . 1 . . . . . . . . . . . . . . 1 1 . . Impact Weapon . | . . . . . . . . . . . . . . . . . . . . Slashing Weapon 2 | . . . . . 1 . 1 . . . . . . . . . . . . Piercing Weapon 1 | . . . . . . . . . 1 . . . . . . . . . . Special Melee Weapon . | . . . . . . . . . . . . . . . . . . . . Unidentified Prototypes 30 | . . 1 . . 1 . 8 . 1 . . 5 . . . 3 . 1 10 Parts Lost 53 | . . 7 5 3 . 8 . 4 4 3 . . 1 . . 4 8 1 5 Power 4 | . . 1 . . . 1 . 1 . . . . . . . . 1 . . Propulsion 23 | . . 2 3 2 . 4 . 2 1 3 . . 1 . . 1 2 1 1 Utility 11 | . . 1 . 1 . . . . 1 . . . . . . 1 4 . 3 Weapon 15 | . . 3 2 . . 3 . 1 2 . . . . . . 2 1 . 1 Highest Loss Streak 5 | . . 3 2 2 . 5 . 2 4 3 . . 1 . . 2 5 1 2 To Critical Strikes 1 | . . . . . . . . . . 1 . . . . . . . . . Average Backups 11 | 2 7 13 13 14 14 12 14 10 13 10 3 4 4 4 4 7 16 18 17 Power . | . 1 1 1 1 1 1 1 . . . . 1 1 1 1 1 1 1 . Propulsion . | 1 3 1 . . 2 . . . . . . . . . . . . 1 . Utility 6 | . . 4 7 6 6 7 8 7 8 6 1 1 1 1 1 3 9 10 9 Weapon 3 | . 2 4 4 5 5 4 4 3 4 4 2 2 2 2 2 1 3 4 6 Tool/Special . | . . . . . . . . . . . . . . . . . . . . Unused Backups 39 | . 3 7 2 2 1 2 . 2 4 4 . 1 . . . . . 1 10 Power 3 | . . 3 . . . . . . . . . . . . . . . . . Propulsion 5 | . 2 1 1 . . . . . 1 . . . . . . . . . . Utility 18 | . . 1 . . 1 2 . 2 2 3 . . . . . . . 1 6 Weapon 12 | . 1 2 1 1 . . . . 1 1 . 1 . . . . . . 4 Tool/Special 1 | . . . . 1 . . . . . . . . . . . . . . . Average Slot Usage (%) 83 | . 100 99 98 93 98 84 78 93 99 75 18 50 59 68 65 87 89 81 83 Engine 7 | . 12 4 9 7 12 10 7 10 6 4 3 6 6 6 6 5 5 5 7 Reactor 1 | . . . . . . . . . . . . 5 6 6 6 5 1 . 1 Treads 6 | . . . . . . . . 24 24 18 . 2 7 12 12 5 5 5 2 Leg 7 | . . . . . . . . . 2 . 3 6 9 12 9 21 18 15 18 Wheel 11 | . 28 32 34 34 35 24 21 8 3 . . . 3 6 6 . . . 1 Device 11 | . 14 12 8 10 6 5 5 6 11 4 10 15 12 12 12 15 18 15 13 Storage 6 | . 14 11 9 7 7 7 7 7 6 4 . 5 6 6 6 8 5 5 4 Processor 7 | . . 5 9 7 7 7 10 14 12 13 . 2 6 6 6 6 5 5 6 Hackware 1 | . . . . 1 7 7 5 . . . . . . . . . . . . Protection 2 | . . 3 . . . 1 . . 5 4 . . . . . 4 5 5 5 Energy Gun 1 | . 1 9 . . . . . . 1 4 . . . . . . . . 4 Ballistic Gun 8 | . 25 9 18 17 9 12 3 19 15 4 . . . . . 1 7 11 4 Ballistic Cannon 4 | . . . 4 1 7 . . . 1 4 . . . . . 7 13 11 10 Launcher 1 | . . . . . 4 4 6 . . . . . . . . . . . . Peak Build Rating 132 | 7 11 17 23 31 36 36 53 63 76 75 21 56 55 52 55 101 101 84 132 Average Rating 56 | 4 7 14 21 27 33 32 41 55 69 57 16 47 49 52 51 84 88 82 94 On Entrance 41 | . 7 11 15 23 29 35 30 50 53 75 2 21 51 52 52 55 101 83 81 Naked Turns 66 | . . . . . . . . . . 38 17 . . . . . . . 11 Heaviest Build 140 | 15 21 42 45 46 63 59 44 53 63 62 22 33 27 27 27 105 107 102 140 Greatest Support 123 | 20 26 36 46 62 62 62 42 104 106 106 20 20 36 36 36 93 78 58 123 Greatest Overweight (x) 7 | . . 1 1 1 1 1 1 3 . 1 2 2 1 . 1 1 2 2 7 Average Overweight (x) . | . . . . . . . . . . . . 1 . . . . 1 1 3 Largest Inventory Capacity 20 | 8 10 15 15 15 15 15 15 15 15 15 5 5 5 5 5 20 20 20 20 Average Capacity 14 | 6 8 14 15 15 15 15 15 15 15 12 5 5 5 5 5 19 20 20 19 Most Carried 20 | 6 10 15 15 15 15 15 15 15 15 15 5 5 5 5 5 16 20 20 20 Average Carried 12 | 2 7 13 13 14 14 12 14 11 14 11 4 5 5 5 5 7 16 19 18 Final Capacity 20 | 8 10 15 15 15 15 15 15 15 15 5 5 5 5 5 5 20 20 20 5 Final Carried 20 | 6 10 15 14 15 15 13 15 12 14 5 5 5 5 5 5 15 19 20 5 Class Distribution -------------------- 27% | Scavenger-Skirmisher 25% | Skirmisher 19% | Messiah-Mutant 10% | Mutant 3% | Derelict-Skirmisher 3% | Scavenger-Mutant Dominant Class ---------------- Mutant | -10/Materials Scavenger-Mutant | -9/Materials Skirmisher | -8/Materials Scavenger-Skirmisher | -7/Factory Scavenger-Skirmisher | -7/Lower Caves Scavenger-Skirmisher | -7/Lower Caves Mutant | -7/Zion Scavenger-Skirmisher | -6/Proximity Caves Scavenger-Skirmisher | -6/Factory Scavenger-Skirmisher | -6/Waste Mutant | -6/Factory Messiah-Mutant | -6/Lower Caves Messiah-Mutant | -6/Lower Caves Messiah-Mutant | -6/Data Miner Messiah-Mutant | -5/Proximity Caves Derelict-Mutant | -5/Factory Skirmisher | -5/Upper Caves Skirmisher | -5/Upper Caves Skirmisher | -5/Warlord Resources | -11 -10 -9 -8 -7 -7 -7 -7 -6 -6 -6 -6 -6 -6 -6 -5 -5 -5 -5 -5 ----------- Run | Yrd Mat Mat Mat Fac Low Low Zio Pro Fac Was Fac Low Low Dat Pro Fac Upp Upp War Matter Collected 7658 | 283 205 701 678 505 421 426 89 986 386 . 75 399 199 . 136 696 931 58 484 Remotely . | . . . . . . . . . . . . . . . . . . . . Salvage Created 5707 | 29 326 866 698 520 32 506 . 637 498 . . . . . . 451 394 . 750 Parts 320 | 9 18 68 51 34 . 17 . 20 32 . . . . . . 25 10 . 36 Haulers Intercepted 2 | . . 2 . . . . . . . . . . . . . . . . . Recyclers Shooed 5 | . . 1 2 2 . . . . . . . . . . . . . . . Parts Field Recycled 28 | . . . . . 19 . . . 9 . . . . . . . . . . Retrieved Matter 313 | . . . . . 210 . . . 103 . . . . . . . . . . Parts Self-Destructed 94 | . . . . . 2 11 2 22 . . . 8 24 . 14 . 11 . . Prevented 52 | . . . . . 2 5 . . . . . 8 11 . 26 . . . . Kills | -11 -10 -9 -8 -7 -7 -7 -7 -6 -6 -6 -6 -6 -6 -6 -5 -5 -5 -5 -5 ------- Run | Yrd Mat Mat Mat Fac Low Low Zio Pro Fac Was Fac Low Low Dat Pro Fac Upp Upp War Combat Hostiles Destroyed 128 | . 6 25 17 3 1 9 . 19 5 . . . . . . 10 11 . 22 Melee 1 | . . . . . . . . . 1 . . . . . . . . . . Guns 57 | . 6 15 6 3 . 3 . 5 4 . . . . . . . 3 . 12 Cannons 24 | . . . 3 . . 3 . . . . . . . . . 8 8 . 2 AOE 46 | . . 10 8 . 1 3 . 14 . . . . . . . 2 . . 8 Classes Destroyed 22 | 1 2 6 2 1 . 1 . 4 1 . . . . . . . . . 4 Worker 11 | . . 3 2 5 . . . . 1 . . . . . . . . . . Builder 6 | . . . 5 . . . . . . . . . . . . 1 . . . Tunneler 3 | 2 . 1 . . . . . . . . . . . . . . . . . Hauler 2 | . . 2 . . . . . . . . . . . . . . . . . Recycler 7 | . 1 . 1 4 . . . . 1 . . . . . . . . . . Minesweeper 1 | . . . . . . 1 . . . . . . . . . . . . . Mechanic 2 | . . . . . . . . 1 . . . . . . . . . . 1 Operator 1 | . . . . . . . . . 1 . . . . . . . . . . Watcher 9 | . . 4 1 1 . . . . 3 . . . . . . . . . . Swarmer 28 | . . 14 4 . . . . 3 . . . . . . . 1 3 . 3 Saboteur 1 | . . . . . . . . . . . . . . . . . . . 1 Grunt 61 | . 6 5 9 . . 8 . 9 3 . . . . . . 3 5 . 13 Brawler 4 | . . 1 . . . . . 2 . . . . . . . . . . 1 Duelist 4 | . . . . . . . . 3 . . . . . . . . . . 1 Protector 1 | . . . . . . . . . . . . . . . . . . . 1 Sentry 10 | . . 5 3 . . 1 . 1 . . . . . . . . . . . Hunter 4 | . . . 1 . 1 . . . . . . . . . . . 2 . . Programmer 13 | . . . . 3 . . . 1 2 . . . . . . 6 1 . . Behemoth 1 | . . . . . . . . 1 . . . . . . . . . . . Striker 1 | . . . . . . . . . . . . . . . . . . . 1 Executioner 1 | . . . . . . . . . . . . . . . . . . . 1 Decomposer 1 | . . . . . . 1 . . . . . . . . . . . . . Fireman 1 | . . . . . . . . 1 . . . . . . . . . . . Best Kill Streak 23 | 2 3 10 16 6 1 4 . 4 3 . . . . . . 3 5 . 23 Combat Bots Only 22 | . 2 8 11 2 1 4 . 4 3 . . . . . . 3 5 . 22 Max Kills in Single Turn 5 | 1 1 5 4 1 1 3 . 2 1 . . . . . . 2 1 . 3 Gunslinging 1 | . . 1 . . . . . . . . . . . . . . . . . Exploded 4 | . . 4 2 . 1 2 . 2 . . . . . . . 1 . . 2 Melee 1 | . . . . . . . . . 1 . . . . . . . . . . Uniques/NPCs Destroyed . | . . . . . . . . . . . . . . . . . . . . Combat | -11 -10 -9 -8 -7 -7 -7 -7 -6 -6 -6 -6 -6 -6 -6 -5 -5 -5 -5 -5 -------- Run | Yrd Mat Mat Mat Fac Low Low Zio Pro Fac Was Fac Low Low Dat Pro Fac Upp Upp War Hostile Shots Fired 851 | . 36 116 58 19 14 84 . 42 19 4 . . 4 . . 44 124 15 272 Missed 240 | . 11 31 21 3 4 25 . 14 6 1 . . 1 . . 12 36 5 70 Hits 611 | . 25 85 37 16 10 59 . 28 13 3 . . 3 . . 32 88 10 202 Melee 13 | . . . . . . . . 7 . 3 . . . . . . . . 3 Projectile 598 | . 25 85 37 16 10 59 . 21 13 . . . 3 . . 32 88 10 199 Critical Strikes 25 | . . 2 1 1 . 2 . 4 2 2 . . . . . 3 1 . 7 Part Disruptions 4 | . . . . 1 . . . . 1 . . . . . . 1 1 . . Damage Taken 11275 | . 320 974 609 310 136 913 . 557 722 143 . . 68 . . 1022 1511 518 3472 Core 1680 | . 25 149 74 35 48 117 . 68 90 56 . . . . . 64 28 18 908 Absorbed by Shields 816 | . . . . . . . . . . . . . . . . . . . 816 Ignored by Resistances 83 | . . . . . . . . . . . . . . . . 83 . . . Regen/Repaired (Parts) 487 | . . . . . . . . . 9 . . . . . . . . . 478 Core Remaining (%) 80 | 100 90 62 86 . . . . 61 . . . . . . 82 . . . . Volleys Fired 365 | 3 26 56 35 38 6 30 . 50 30 . . . . . . 36 25 2 28 Largest 4 | 2 2 2 3 3 3 3 . 3 3 . . . . . . 4 4 2 4 Hottest 213 | 40 100 165 123 123 92 130 . 78 132 . . . . . . 171 171 94 213 Shots Fired 868 | 6 51 106 90 90 18 72 . 89 72 . . . . . . 58 106 4 106 Gun 564 | 6 50 98 60 74 6 47 . 64 61 . . . . . . 5 28 . 65 Cannon 221 | . . . 24 8 6 13 . . 2 . . . . . . 45 78 4 41 Launcher 75 | . . 7 6 2 6 12 . 25 9 . . . . . . 8 . . . Special 8 | . 1 1 . 6 . . . . . . . . . . . . . . . Kinetic 650 | 6 50 63 74 75 12 51 . 64 61 . . . . . . 43 106 4 41 Thermal 22 | . 1 15 . 6 . . . . . . . . . . . . . . . Explosive 59 | . . 7 6 2 . 2 . 25 9 . . . . . . 8 . . . Electromagnetic 72 | . . 21 10 7 6 19 . . 2 . . . . . . 7 . . . Entropic 65 | . . . . . . . . . . . . . . . . . . . 65 Robot Hit Streak 12 | 5 12 12 12 8 6 7 . 9 6 . . . . . . 5 6 . 7 Robot Miss Streak 11 | . 3 3 7 4 2 3 . 10 10 . . . . . . 6 7 . 11 Penetration Max 2 | . . . . 1 . . . . . . . . . . . 1 . . 2 Secondary Targets 10 | . . 3 . . . . . . 1 . . . . . . . . . 6 Max Gunslinging Chain 1 | . . 1 . . . . . . 1 . . . . . . . . . 1 Shots Hit Robots 464 | 5 39 69 48 52 14 37 . 40 42 . . . . . . 26 38 . 54 Core Hits 385 | 3 16 48 61 24 3 26 . 66 34 . . . . . . 29 15 . 60 Critical Kills 1 | . . . . . . . . . . . . . . . . . . . 1 Critical Parts Destroyed 12 | . . . . . . . . . 1 . . . . . . . . . 11 Critical Strikes 28 | . . . . . . . . . 1 . . . . . . 4 7 . 16 Destroy 7 | . . . . . . . . . 1 . . . . . . . . . 6 Blast 13 | . . . . . . . . . . . . . . . . 4 7 . 2 Detonate 8 | . . . . . . . . . . . . . . . . . . . 8 Melee Attacks 12 | . . . . . 1 . 1 3 7 . . . . . . . . . . Impact . | . . . . . . . . . . . . . . . . . . . . Slashing 5 | . . . . . 1 . 1 3 . . . . . . . . . . . Piercing 7 | . . . . . . . . . 7 . . . . . . . . . . Sneak Attacks . | . . . . . . . . . . . . . . . . . . . . Combat Hostiles . | . . . . . . . . . . . . . . . . . . . . Follow-up Attacks . | . . . . . . . . . . . . . . . . . . . . Damage Inflicted 18149 | 59 476 1726 2018 979 252 1170 . 3368 760 . . . . . . 1335 1233 . 4773 Guns 7366 | 59 476 955 508 916 55 483 . 663 702 . . . . . . 22 249 . 2278 Cannons 3217 | . . . 398 39 81 221 . . 27 . . . . . . 871 984 . 596 Explosions 7511 | . . 771 1112 . 116 466 . 2705 . . . . . . . 442 . . 1899 Melee 31 | . . . . . . . . . 31 . . . . . . . . . . Ramming . | . . . . . . . . . . . . . . . . . . . . Kinetic 7499 | 59 476 620 697 935 136 505 . 663 699 . . . . . . 880 1233 . 596 Thermal 2150 | . . 227 . 24 . . . . . . . . . . . . . . 1899 Explosive 5222 | . . 711 1112 . . 252 . 2705 . . . . . . . 442 . . . Electromagnetic 969 | . . 168 209 20 116 413 . . 30 . . . . . . 13 . . . Impact . | . . . . . . . . . . . . . . . . . . . . Slashing . | . . . . . . . . . . . . . . . . . . . . Piercing 31 | . . . . . . . . . 31 . . . . . . . . . . Entropic 2278 | . . . . . . . . . . . . . . . . . . . 2278 Highest Corruption 24 | . . . . 2 2 2 2 1 11 24 24 24 24 24 24 2 5 5 5 Average Corruption 9 | . . . . 1 2 2 2 1 3 16 24 24 24 24 24 2 3 5 5 Corruption Purged 4 | . . . . . . . . . 4 . . . . . . . . . . Corruption Blocked . | . . . . . . . . . . . . . . . . . . . . Effects 448 | . . . . 5 19 30 4 10 21 11 13 106 74 6 53 3 63 14 16 Message Errors 101 | . . . . 2 5 6 2 3 6 3 1 24 22 2 9 . 12 1 3 Matter Fused 117 | . . . . 1 5 6 . 1 4 4 3 27 18 1 19 1 18 5 4 Heat Flow Errors 59 | . . . . 1 4 2 . 3 2 . 2 17 5 3 8 . 9 2 1 Energy Discharges 48 | . . . . . . 10 . 1 2 . 2 13 6 . 4 . 4 3 3 Parts Rejected 2 | . . . . . . 1 . . . . . . . . 1 . . . . Parts Fused 9 | . . . . . . 1 . . 1 . . 2 4 . 1 . . . . Data Loss (minor) 61 | . . . . . 2 3 2 1 4 1 1 16 13 . 5 2 9 1 1 Data Loss (major) 28 | . . . . . 2 1 . . . . 3 7 5 . 4 . 4 1 1 Misfires 8 | . . . . . . . . 1 1 . . . . . . . 6 . . Alerts 7 | . . . . . 1 . . . . . 1 . . . 2 . 1 1 1 Misdirections 4 | . . . . . . . . . . 3 . . 1 . . . . . . Weapon Failures 4 | . . . . 1 . . . . 1 . . . . . . . . . 2 Overload Shots . | . . . . . . . . . . . . . . . . . . . . Overflow Damage 223 | . . 8 52 . . 3 . 95 . . . . . . . 14 37 . 14 Projectiles 70 | . . . 5 . . . . . . . . . . . . 14 37 . 14 Explosions 153 | . . 8 47 . . 3 . 95 . . . . . . . . . . . Melee . | . . . . . . . . . . . . . . . . . . . . Knockbacks 38 | . . . 7 . 2 . . . . . . . . . . 5 15 . 9 Impact . | . . . . . . . . . . . . . . . . . . . . Kinetic 37 | . . . 6 . 2 . . . . . . . . . . 5 15 . 9 Secondary 1 | . . . 1 . . . . . . . . . . . . . . . . Self-Inflicted Damage 92 | . . 2 19 . . 44 . 8 19 . . . . . . . . . . Shots 10 | . . 1 1 . . 5 . 2 1 . . . . . . . . . . Rammed . | . . . . . . . . . . . . . . . . . . . . Targets Rammed . | . . . . . . . . . . . . . . . . . . . . Kicked . | . . . . . . . . . . . . . . . . . . . . Crushed . | . . . . . . . . . . . . . . . . . . . . Highest Temperature 408 | . 28 120 166 152 268 188 . 222 256 . 221 262 256 252 237 147 272 251 408 Average Temperature 83 | . 6 32 42 77 88 74 . 57 78 . 122 96 94 106 100 69 108 126 127 Received Heat Transfer 2731 | . 183 372 261 9 . 492 . 99 99 . . . 12 . . 138 225 . 841 Effects 2 | . . . . . . . . . . . . . . . . . 1 . 1 Shutdowns 1 | . . . . . . . . . . . . . . . . . . . 1 Energy Bleed 1 | . . . . . . . . . . . . . . . . . 1 . . Siege Activations . | . . . . . . . . . . . . . . . . . . . . Martial Activations . | . . . . . . . . . . . . . . . . . . . . Shielding Activations . | . . . . . . . . . . . . . . . . . . . . Robots Disrupted . | . . . . . . . . . . . . . . . . . . . . Combat Hostiles . | . . . . . . . . . . . . . . . . . . . . Robots Corrupted . | . . . . . . . . . . . . . . . . . . . . Combat Hostiles . | . . . . . . . . . . . . . . . . . . . . Parts Fried 4 | . . . 1 . . 1 . . . . . . . . . 2 . . . Impact Corruptions . | . . . . . . . . . . . . . . . . . . . . Robots Melted . | . . . . . . . . . . . . . . . . . . . . Combat Hostiles . | . . . . . . . . . . . . . . . . . . . . Parts Melted 1 | . . 1 . . . . . . . . . . . . . . . . . Heat Transferred 1907 | . . 457 . 50 . . . . . . . . . . . . . . 1400 Parts Sabotaged . | . . . . . . . . . . . . . . . . . . . . Parts Stolen . | . . . . . . . . . . . . . . . . . . . . Parts Stripped . | . . . . . . . . . . . . . . . . . . . . Power Chain Reactions 1 | . . 1 . . . . . . . . . . . . . . . . . Alert | -11 -10 -9 -8 -7 -7 -7 -7 -6 -6 -6 -6 -6 -6 -6 -5 -5 -5 -5 -5 ------- Run | Yrd Mat Mat Mat Fac Low Low Zio Pro Fac Was Fac Low Low Dat Pro Fac Upp Upp War Maximum Alert Level 3 | . . 2 2 1 . . . . . . . . . . . 3 . . . Low Security (%) 78 | 100 100 75 21 92 . . . . 100 100 100 . . . . 45 . . . Level 1 9 | . . 14 13 7 . . . . . . . . . . . 21 . . . Level 2 12 | . . 10 64 . . . . . . . . . . . . 30 . . . Level 3 . | . . . . . . . . . . . . . . . . 2 . . . Level 4 . | . . . . . . . . . . . . . . . . . . . . Level 5 . | . . . . . . . . . . . . . . . . . . . . High Security . | . . . . . . . . . . . . . . . . . . . . Max Security . | . . . . . . . . . . . . . . . . . . . . Peak Influence 708 | 10 115 530 494 215 . . . . 88 . 42 . . . . 708 . . . Initial 342 | . . 37 215 215 . . . . 37 . . . . . . 342 . . . Average 119 | . 57 101 370 74 . . . . 12 . 2 . . . . 302 . . . Influence Increases 6344 | 10 210 801 539 188 30 445 . 547 210 . 42 219 304 . 556 1258 276 . 709 Destroy 0b10 Robot/C 3840 | . 120 500 340 60 20 180 . 420 100 . 20 140 180 . 400 500 260 . 600 Destroy 0b10 Robot/NC 255 | 10 5 50 45 50 . 5 . 5 30 . . . . . 15 30 . . 10 Destroy Leader 638 | . 30 122 82 32 10 20 . 60 36 . 10 20 40 . 40 126 10 . . Allied During Kill 439 | . . . . . . . . 32 . . 12 59 84 . 86 76 6 . 84 Successful Hack 77 | . 10 48 14 . . . . . 5 . . . . . . . . . . Disable Machine 210 | . 15 . 45 30 . . . . 15 . . . . . . 105 . . . Destroy Structure 195 | . . 66 13 16 . . . . 24 . . . . . . 76 . . . Advance Influence 300 | . . . . . . . . . . . . . . . . 300 . . . Lose Combat Pursuer 390 | . 30 15 . . . 240 . 30 . . . . . . 15 45 . . 15 Influence Decreases 5805 | 10 120 379 577 662 30 297 148 486 271 . 10 251 223 81 488 622 980 . 170 Entered New Map 1163 | . . 53 297 259 . . 148 . 24 . . 13 . 81 . 26 262 . . Time Decay 3914 | 10 120 256 230 373 30 267 . 338 217 . 10 218 223 . 428 526 618 . 50 Lost Part 420 | . . 70 50 30 . 30 . 40 30 . . . . . . 40 80 . 50 Lost Ally 308 | . . . . . . . . 108 . . . 20 . . 60 30 20 . 70 Squads Dispatched 24 | . 1 1 2 2 . . . 1 6 . 2 . . . 1 8 . . . Investigation 4 | . . 1 1 . . . . . 1 . . . . . . 1 . . . Extermination 9 | . . . . 2 . . . . 3 . 1 . . . . 3 . . . Reinforcement 4 | . 1 . 1 . . . . . . . 1 . . . . 1 . . . Assault 4 | . . . . . . . . 1 2 . . . . . 1 . . . . Garrison 3 | . . . . . . . . . . . . . . . . 3 . . . Intercept . | . . . . . . . . . . . . . . . . . . . . Searches Triggered . | . . . . . . . . . . . . . . . . . . . . Construction Impeded 1 | . . . 1 . . . . . . . . . . . . . . . . Haulers Reinforced . | . . . . . . . . . . . . . . . . . . . . Active Scanning Responses . | . . . . . . . . . . . . . . . . . . . . Cargo Convoy Interrupts 1 | . . . . . . . . . 1 . . . . . . . . . . Stealth | -11 -10 -9 -8 -7 -7 -7 -7 -6 -6 -6 -6 -6 -6 -6 -5 -5 -5 -5 -5 --------- Run | Yrd Mat Mat Mat Fac Low Low Zio Pro Fac Was Fac Low Low Dat Pro Fac Upp Upp War Distress Signals 11 | . 1 4 4 . . . . . . . . . . . . 1 . . 1 Communications Jammed . | . . . . . . . . . . . . . . . . . . . . Distress Signals . | . . . . . . . . . . . . . . . . . . . . Times Spotted 271 | . 10 40 21 8 1 21 . 22 10 6 1 5 7 . 20 26 12 2 59 Peak Tracking Total 26 | . 2 9 12 3 1 8 . 8 2 6 1 4 4 . 9 10 7 2 26 Tactical Retreats 12 | . 1 1 . . . 5 . 1 . . . . . . 1 2 . . 1 Traps | -11 -10 -9 -8 -7 -7 -7 -7 -6 -6 -6 -6 -6 -6 -6 -5 -5 -5 -5 -5 ------- Run | Yrd Mat Mat Mat Fac Low Low Zio Pro Fac Was Fac Low Low Dat Pro Fac Upp Upp War Traps Triggered 10 | . . 1 . 3 . . . . 3 . 1 . . . . 1 . . 1 Indirectly . | . . . . . . . . . . . . . . . . . . . . Trap Hack Attempts . | . . . . . . . . . . . . . . . . . . . . Triggered . | . . . . . . . . . . . . . . . . . . . . Disarmed . | . . . . . . . . . . . . . . . . . . . . Reprogrammed . | . . . . . . . . . . . . . . . . . . . . Reused . | . . . . . . . . . . . . . . . . . . . . Traps Extracted . | . . . . . . . . . . . . . . . . . . . . Installed . | . . . . . . . . . . . . . . . . . . . . Triggered . | . . . . . . . . . . . . . . . . . . . . Machines | -11 -10 -9 -8 -7 -7 -7 -7 -6 -6 -6 -6 -6 -6 -6 -5 -5 -5 -5 -5 ---------- Run | Yrd Mat Mat Mat Fac Low Low Zio Pro Fac Was Fac Low Low Dat Pro Fac Upp Upp War Machines Disabled 22 | . 1 . 3 2 . . . 1 1 . . . . . . 7 3 1 3 Max in Single Turn 2 | . 1 . 2 1 . . . 1 1 . . . . . . 2 1 1 1 Garrison Access 1 | . . . . . . . . . 1 . . . . . . . . . . Machines Repaired . | . . . . . . . . . . . . . . . . . . . . Machines Dismantled . | . . . . . . . . . . . . . . . . . . . . Machines Sabotaged . | . . . . . . . . . . . . . . . . . . . . Overloaded Fab Kills . | . . . . . . . . . . . . . . . . . . . . Hacking | -11 -10 -9 -8 -7 -7 -7 -7 -6 -6 -6 -6 -6 -6 -6 -5 -5 -5 -5 -5 --------- Run | Yrd Mat Mat Mat Fac Low Low Zio Pro Fac Was Fac Low Low Dat Pro Fac Upp Upp War Machines Accessed 43 | . 3 7 4 1 1 1 . . 1 . . . 1 4 . 1 1 1 17 Terminals 15 | . 3 6 3 . . 1 . . . . . . 1 . . 1 . . . Fabricators 1 | . . . . 1 . . . . . . . . . . . . . . . Repair Stations 1 | . . . . . . . . . 1 . . . . . . . . . . Recycling Units 1 | . . 1 . . . . . . . . . . . . . . . . . Scanalyzers 1 | . . . 1 . . . . . . . . . . . . . . . . Garrison Access . | . . . . . . . . . . . . . . . . . . . . Total Hacks 114 | . 8 18 12 2 1 1 . . 2 . . . 1 29 . 1 1 1 37 Successful 91 | . 3 8 7 . 1 1 . . 2 . . . 1 29 . . 1 1 37 Failed 23 | . 5 10 5 2 . . . . . . . . . . . 1 . . . Catastrophic 2 | . 1 . 1 . . . . . . . . . . . . . . . . Database Lockouts . | . . . . . . . . . . . . . . . . . . . . Manual 41 | . 5 8 5 . . . . . 7 . 5 . 1 1 . 8 . . 1 Terminals 36 | . 8 16 9 . . 1 . . . . . . 1 . . 1 . . . Fabricators 2 | . . . . 2 . . . . . . . . . . . . . . . Repair Stations 2 | . . . . . . . . . 2 . . . . . . . . . . Recycling Units 2 | . . 2 . . . . . . . . . . . . . . . . . Scanalyzers 3 | . . . 3 . . . . . . . . . . . . . . . . Garrison Access . | . . . . . . . . . . . . . . . . . . . . Terminal Hacks 81 | . 3 4 3 . 1 1 . . . . . . 1 29 . . 1 1 37 Record 45 | . . . . . . 1 . . . . . . 1 11 . . . 1 31 Part Schematic 12 | . . . . . . . . . . . . . . 12 . . . . . Robot Schematic 3 | . . . . . . . . . . . . . . 3 . . . . . Prototype ID Bank 10 | . 1 2 . . . . . . . . . . . 3 . . . . 4 Open Door 4 | . . . . . 1 . . . . . . . . . . . 1 . 2 Branch Access Points 1 | . . . 1 . . . . . . . . . . . . . . . . Alert Level 1 | . . . 1 . . . . . . . . . . . . . . . . Dispatch Records 2 | . 1 . 1 . . . . . . . . . . . . . . . . Security Status 1 | . . 1 . . . . . . . . . . . . . . . . . Hauler Manifests 2 | . 1 1 . . . . . . . . . . . . . . . . . Fabricator Hacks . | . . . . . . . . . . . . . . . . . . . . Repair Station Hacks 2 | . . . . . . . . . 2 . . . . . . . . . . Scan Component 1 | . . . . . . . . . 1 . . . . . . . . . . Repair 1 | . . . . . . . . . 1 . . . . . . . . . . Recycling Unit Hacks 1 | . . 1 . . . . . . . . . . . . . . . . . Report Inventory 1 | . . 1 . . . . . . . . . . . . . . . . . Scanalyzer 3 | . . . 3 . . . . . . . . . . . . . . . . Insert Component 1 | . . . 1 . . . . . . . . . . . . . . . . Analyze 2 | . . . 2 . . . . . . . . . . . . . . . . Garrison Access Hacks . | . . . . . . . . . . . . . . . . . . . . Unauthorized Hacks 4 | . . 3 1 . . . . . . . . . . . . . . . . Terminals 4 | . . 3 1 . . . . . . . . . . . . . . . . Botnet 2 | . . 2 . . . . . . . . . . . . . . . . . Operators 2 | . . 1 1 . . . . . . . . . . . . . . . . Fabricators . | . . . . . . . . . . . . . . . . . . . . Repair Stations . | . . . . . . . . . . . . . . . . . . . . Recycling Units . | . . . . . . . . . . . . . . . . . . . . Scanalyzers . | . . . . . . . . . . . . . . . . . . . . Garrison Access . | . . . . . . . . . . . . . . . . . . . . Data Cores Recovered . | . . . . . . . . . . . . . . . . . . . . Used . | . . . . . . . . . . . . . . . . . . . . Hacking Detections 15 | . 2 7 4 1 . . . . 1 . . . . . . . . . . Full Trace Events 1 | . . . 1 . . . . . . . . . . . . . . . . Feedback Events . | . . . . . . . . . . . . . . . . . . . . Feedback Blocked . | . . . . . . . . . . . . . . . . . . . . Robot Schematics Acquired 6 | . . . . . . . 3 . . . . . . 3 . . . . . Robots Built . | . . . . . . . . . . . . . . . . . . . . Authchips . | . . . . . . . . . . . . . . . . . . . . Time . | . . . . . . . . . . . . . . . . . . . . Total Robot Build Rating . | . . . . . . . . . . . . . . . . . . . . Part Schematics Acquired 28 | . . . . . . . 16 . . . . . . 12 . . . . . Parts Built . | . . . . . . . . . . . . . . . . . . . . Authchips . | . . . . . . . . . . . . . . . . . . . . Time . | . . . . . . . . . . . . . . . . . . . . Total Part Build Rating . | . . . . . . . . . . . . . . . . . . . . Parts Repaired 1 | . . . . . . . . . 1 . . . . . . . . . . Time 38 | . . . . . . . . . 38 . . . . . . . . . . Parts Recycled . | . . . . . . . . . . . . . . . . . . . . Recycled Matter . | . . . . . . . . . . . . . . . . . . . . Retrieved Matter . | . . . . . . . . . . . . . . . . . . . . Retrieved Components . | . . . . . . . . . . . . . . . . . . . . Parts Scanalyzed 1 | . . . 1 . . . . . . . . . . . . . . . . Part Schematics Acquired . | . . . . . . . . . . . . . . . . . . . . Parts Damaged . | . . . . . . . . . . . . . . . . . . . . Bothacking | -11 -10 -9 -8 -7 -7 -7 -7 -6 -6 -6 -6 -6 -6 -6 -5 -5 -5 -5 -5 ------------ Run | Yrd Mat Mat Mat Fac Low Low Zio Pro Fac Was Fac Low Low Dat Pro Fac Upp Upp War Used RIF Installer . | . . . . . . . . . . . . . . . . . . . . Robots Hacked . | . . . . . . . . . . . . . . . . . . . . Non-combat . | . . . . . . . . . . . . . . . . . . . . Combat . | . . . . . . . . . . . . . . . . . . . . Robot Hacks Applied . | . . . . . . . . . . . . . . . . . . . . Relay Couplers Released 1 | . . . . . . . . . 1 . . . . . . . . . . Machine Destruction 1 | . . . . . . . . . 1 . . . . . . . . . . Fabnet Peak Effective % . | . . . . . . . . . . . . . . . . . . . . Robots Rewired 9 | . . . . . . . . 2 . . . . . . 2 . . . 5 Allies Hacked . | . . . . . . . . . . . . . . . . . . . . Hacks Repelled . | . . . . . . . . . . . . . . . . . . . . Allies | -11 -10 -9 -8 -7 -7 -7 -7 -6 -6 -6 -6 -6 -6 -6 -5 -5 -5 -5 -5 -------- Run | Yrd Mat Mat Mat Fac Low Low Zio Pro Fac Was Fac Low Low Dat Pro Fac Upp Upp War Total Allies 28 | . . . . . . . 11 2 . . 4 . 2 . 2 2 . . 5 Largest Group 11 | . . . . . . . 11 11 . . 4 4 4 4 4 2 1 . 5 Highest-Rated Group 408 | . . . . . . . 343 343 . . 356 356 408 408 408 168 133 . 273 Highest-Rated Ally 146 | . . . . . . . 41 41 . . 146 146 146 146 146 139 133 . 68 Zionite Dispatches 4 | . . . . . . . . . . . 2 . . . . 2 . . . Light 1 | . . . . . . . . . . . 1 . . . . . . . . Hero 1 | . . . . . . . . . . . 1 . . . . . . . . Kinetic Resupply 1 | . . . . . . . . . . . . . . . . 1 . . . Offense Resupply 1 | . . . . . . . . . . . . . . . . 1 . . . Total Orders 5 | . . . . . . . . . . . 1 1 . . . 2 . . 1 AID 1 | . . . . . . . . . . . . . . . . . . . 1 DROP 2 | . . . . . . . . . . . . . . . . 2 . . . EXPLORE 2 | . . . . . . . . . . . 1 1 . . . . . . . Ally Attacks 281 | . . . . . . . . 24 . . 1 28 45 . 82 63 3 . 35 Total Damage 10433 | . . . . . . . . 553 . . 69 883 1021 . 3257 2963 410 . 1277 Kills 73 | . . . . . . . . 2 . . 1 7 9 . 23 20 2 . 9 Allies Corrupted 1 | . . . . . . . . . . . . . . . 1 . . . . Allies Melted 1 | . . . . . . . . . . . . . . . . . . . 1 Intel | -11 -10 -9 -8 -7 -7 -7 -7 -6 -6 -6 -6 -6 -6 -6 -5 -5 -5 -5 -5 ------- Run | Yrd Mat Mat Mat Fac Low Low Zio Pro Fac Was Fac Low Low Dat Pro Fac Upp Upp War Active Infowar (turns) 20494 | 8 324 1508 469 1023 1501 1581 1658 2653 2157 122 1 . . . . 1394 2652 687 2756 Optics 5581 | . . . . . . . 398 2653 2157 122 . . . . . 251 . . . Sensors 19026 | . . 1037 469 1023 1501 1581 1245 2475 2084 122 . . . . . 1394 2652 687 2756 Terrain 641 | . . . . 460 . . . . 181 . . . . . . . . . . Seismic 948 | 8 324 616 . . . . . . . . . . . . . . . . . Decoding 454 | . . . . . . . 413 41 . . . . . . . . . . . ECM 1 | . . . . . . . . . . . 1 . . . . . . . . Robot Analysis Total . | . . . . . . . . . . . . . . . . . . . . Derelict Logs Recovered 14 | . . . . . 1 1 . 2 . . . 1 3 . 2 . 2 2 . Drone Launches 3 | . . . . . . . . . . . 2 1 . . . . . . . Drone Recoveries 1 | . . . . . . . . . . . 1 . . . . . . . . Zionite Intel Received 1 | . . . . . . . . . 1 . . . . . . . . . . Active Garrisons 1 | . . . . . . . . . 1 . . . . . . . . . . Exploration | -11 -10 -9 -8 -7 -7 -7 -7 -6 -6 -6 -6 -6 -6 -6 -5 -5 -5 -5 -5 ------------- Run | Yrd Mat Mat Mat Fac Low Low Zio Pro Fac Was Fac Low Low Dat Pro Fac Upp Upp War Turns Passed 27192 | 69 324 1568 492 1023 1633 1847 1669 2653 2157 160 324 2163 1676 127 1291 1479 2945 687 2905 Spaces Moved 17248 | 56 246 951 386 817 1328 1755 1354 1529 1136 151 169 1069 1158 102 1078 716 1532 346 1369 Core 170 | 3 . . . . . . . . . 77 65 . . . . . . . 25 Treads 2509 | . . . . . . . . 1298 1136 74 . . . . 1 . . . . Legs 6478 | . . . . . . . . . . . 104 1067 1087 102 665 716 1532 346 859 Wheels 8089 | 53 246 951 386 817 1328 1755 1354 231 . . . . 71 . 412 . . . 485 Hover 2 | . . . . . . . . . . . . 2 . . . . . . . Flight . | . . . . . . . . . . . . . . . . . . . . Fastest Speed 50 | 50 80 86 80 84 88 88 93 93 160 50 50 190 115 120 115 120 183 183 50 Average Speed 136 | 78 86 94 85 86 88 95 105 150 160 105 147 190 143 120 118 183 184 189 194 Slowest Speed 240 | 80 90 101 101 105 103 108 108 240 160 240 190 210 190 120 190 186 240 240 240 Overloaded Moves . | . . . . . . . . . . . . . . . . . . . . Propulsion Burnouts . | . . . . . . . . . . . . . . . . . . . . Robots Hopped . | . . . . . . . . . . . . . . . . . . . . Potential Cave-ins 27 | . . . . . . . . . 22 . . . . . . . . . 5 Cave-ins Triggered 2 | . . . . . . . . . 1 . . . . . . . . . 1 Exploration Rate (%) 64 | 5 48 78 35 14 97 99 91 99 26 77 7 99 98 75 98 16 98 38 97 Regions Visited 19 Branch Regions 11 Pre-discovered Areas 6 | . . . . . . 1 1 1 . . . 1 . 1 . . 1 . . Known Exits Taken 14 | . . 1 1 1 1 1 1 1 . . . 1 1 1 1 1 1 1 . Unknown Exits Taken 3 | 1 1 . . . . . . . . . 1 . . . . . . . . Scrap Searched 20 | . . . . . 5 4 1 2 . . . 3 2 . 1 . 1 1 . Spaces Dug 15 | . . . . 7 1 . . 3 4 . . . . . . . . . . Terrain Destroyed 508 | . . 63 14 16 1 16 . 130 111 . . . . . . 23 53 1 80 Melee 8 | . . . . . 1 . . 3 4 . . . . . . . . . . Projectile 126 | . . . . 1 . . . . . . . . . . . 11 53 1 60 AOE 374 | . . 63 14 15 . 16 . 127 107 . . . . . . 12 . . 20 Terrain Rammed . | . . . . . . . . . . . . . . . . . . . . Walls Destroyed . | . . . . . . . . . . . . . . . . . . . . Machines Disabled . | . . . . . . . . . . . . . . . . . . . . Actions | -11 -10 -9 -8 -7 -7 -7 -7 -6 -6 -6 -6 -6 -6 -6 -5 -5 -5 -5 -5 --------- Run | Yrd Mat Mat Mat Fac Low Low Zio Pro Fac Was Fac Low Low Dat Pro Fac Upp Upp War Total 20173 | 71 306 1507 475 1062 1770 1873 1592 1805 1412 152 243 1199 1170 106 1093 829 1584 374 1550 Wait 1904 | . 16 433 20 152 407 64 208 133 184 . 70 118 6 5 6 15 5 18 44 Move 17229 | 55 245 950 385 816 1327 1754 1353 1528 1136 150 168 1068 1157 101 1077 715 1531 345 1368 Hop . | . . . . . . . . . . . . . . . . . . . . Pick Up 121 | 6 7 21 10 11 6 7 2 5 15 . 1 1 . . . 13 6 4 6 Fast Attach 129 | 7 2 7 2 9 6 1 12 8 8 . 3 8 4 . 3 21 4 . 24 Attach 82 | . . 7 6 1 2 5 1 19 9 . 1 . . . . 10 6 2 13 Detach 38 | . . . . 1 1 . 1 14 2 1 . . . . . 8 3 1 6 Swap 84 | . 3 16 9 14 4 8 2 12 9 . . . . . . . 2 . 5 Drop 150 | . 7 17 8 20 10 4 12 8 12 1 . 4 1 . 2 11 2 2 29 Fire 365 | 3 26 56 35 38 6 30 . 50 30 . . . . . . 36 25 2 28 Melee 12 | . . . . . 1 . 1 3 7 . . . . . . . . . . Ram . | . . . . . . . . . . . . . . . . . . . . Kick . | . . . . . . . . . . . . . . . . . . . . Crush . | . . . . . . . . . . . . . . . . . . . . Escape Stasis 1 | . . . . . . . . . . . . . . . . . . . 1 Rewire 58 | . . . . . . . . 25 . . . . 2 . 5 . . . 26 Trap . | . . . . . . . . . . . . . . . . . . . . Miscellaneous . | . . . . . . . . . . . . . . . . . . . . Route ------- -11/Scrapyard -10/Materials -9/Materials (discovered 4 exits: *Mat x3 / *Sto) -8/Materials -7/Factory -7/Lower Caves -7/Lower Caves (discovered 2 exits: *Fac / *Zio) -7/Zion (discovered 2 exits: Dee / *Pro) -6/Proximity Caves -6/Factory -6/Waste -6/Factory -6/Lower Caves -6/Lower Caves (discovered 2 exits: *Fac / *Dat) -6/Data Miner -5/Proximity Caves -5/Factory (discovered 4 exits: *Fac / *Upp x2 / Ext) -5/Upper Caves -5/Upper Caves (discovered 2 exits: *Fac / *War) -5/Warlord (discovered 1 exit: *Pro) History --------- Turn | Location | Event 8 | -11/Scrapyard | Discovered new exit (range 16) 70 | -11/Scrapyard | Entered Materials 315 | -10/Materials | Build established: Mutant 365 | -10/Materials | Discovered new exit (range 7) 394 | -10/Materials | Entered another Materials area 394 | -9/Materials | Evolved 2 slots: Propulsion x1, Utility x1 665 | -9/Materials | Build established: Scavenger-Mutant 933 | -9/Materials | Discovered new exit (range 14) 1169 | -9/Materials | Discovered new exit (range 14) 1202 | -9/Materials | Identified exit to Storage 1546 | -9/Materials | Build established: Mutant 1613 | -9/Materials | Destroyed 8 combat bots 1631 | -9/Materials | Discovered new exit (range 9) 1925 | -9/Materials | Lost 3 parts (1p1n1u) 1932 | -9/Materials | Discovered new exit (range 11) 1942 | -9/Materials | Identified exit to Materials 1962 | -9/Materials | Entered another Materials area 1962 | -8/Materials | Evolved 2 slots: Propulsion x1, Weapon x1 2165 | -8/Materials | Destroyed 11 combat bots 2381 | -8/Materials | Discovered new exit (range 16) 2452 | -8/Materials | Identified exit to Factory 2454 | -8/Materials | Entered Factory 2454 | -7/Factory | Evolved 2 slots: Propulsion x1, Utility x1 2493 | -7/Factory | Build established: Skirmisher 3091 | -7/Factory | Build established: Scavenger-Skirmisher 3287 | -7/Factory | Discovered new exit (range 15) 3333 | -7/Factory | Identified exit to Lower Caves 3477 | -7/Factory | Entered Lower Caves 3688 | -7/Lower Caves | Found Alien Artifact 3689 | -7/Lower Caves | Identified Core Expander 3689 | -7/Lower Caves | Installed Core Expander, added new Power slot 3984 | -7/Lower Caves | Discovered new exit (range 6) 4040 | -7/Lower Caves | Identified exit to Lower Caves 4077 | -7/Lower Caves | Learned location of 1 exit from Proximity Caves 5110 | -7/Lower Caves | Entered another Lower Caves area 5169 | -7/Lower Caves | Encountered a Warlord checkpoint 5182 | -7/Lower Caves | Lost 5 parts (3n2w) 5380 | -7/Lower Caves | Discovered new exit (range 14) 5447 | -7/Lower Caves | Identified exit to Zion 6055 | -7/Lower Caves | Attracted the attention of an 0b10 checkpoint 6088 | -7/Lower Caves | Lost 3 parts (1p1n1w) 6410 | -7/Lower Caves | Build established: Skirmisher 6503 | -7/Lower Caves | Discovered new exit (range 10) 6526 | -7/Lower Caves | Identified exit to Factory 6957 | -7/Lower Caves | Entered Zion 7060 | -7/Zion | Found Prototype Launcher 7060 | -7/Zion | Identified Gui. Missile Launcher 7083 | -7/Zion | Discovered new exit (range 11) 7093 | -7/Zion | Identified exit to Proximity Caves 7156 | -7/Zion | System corruption cleaned by Quarantine Array 7438 | -7/Zion | Found Prototype Device 7438 | -7/Zion | Identified Phasing AFG 7593 | -7/Zion | Met Imprinter 7594 | -7/Zion | Build established: Mutant 7615 | -7/Zion | Imprinted 7617 | -7/Zion | Declared Zion's savior 7790 | -7/Zion | Learned location of Extension (-5) 7852 | -7/Zion | Identified exit to Deep Caves 7923 | -7/Zion | Given A8's code to call for help 8205 | -7/Zion | Found Prototype Processor 8205 | -7/Zion | Identified Exp. Core Analyzer 8209 | -7/Zion | Found Prototype Processor 8209 | -7/Zion | Identified Exp. Target Analyzer 8218 | -7/Zion | Found Prototype Hackware 8218 | -7/Zion | Identified Exp. Hacking Suite 8221 | -7/Zion | Found Prototype Processor 8221 | -7/Zion | Identified Exp. Signal Interpreter 8224 | -7/Zion | Found Prototype Processor 8224 | -7/Zion | Identified Exp. Armor Integrity Analyzer 8228 | -7/Zion | Found Prototype Processor 8228 | -7/Zion | Identified Spectral Analyzer 8302 | -7/Zion | Gained Derelict followers 8626 | -7/Zion | Entered Proximity Caves 8626 | -6/Proximity Caves | Accompanied by 11 allies 8689 | -6/Proximity Caves | Build established: Skirmisher 8701 | -6/Proximity Caves | Spotted B-75 Beast 8836 | -6/Proximity Caves | Attracted the attention of an 0b10 outpost 8842 | -6/Proximity Caves | Destroyed B-75 Beast 8875 | -6/Proximity Caves | Lost 9 allies 9301 | -6/Proximity Caves | Build established: Scavenger-Skirmisher 9613 | -6/Proximity Caves | Learned 4 Factory zone layouts 11279 | -6/Proximity Caves | Entered Factory 11279 | -6/Factory | Evolved 2 slots: Utility x2 11980 | -6/Factory | Retrieved Zion intel report: Active Garrisons 12197 | -6/Factory | Repaired Imp. Sensor Array 12539 | -6/Factory | Terminal network hard line cut 13039 | -6/Factory | Crushed by falling debris 13039 | -6/Factory | System corruption reached 10% 13070 | -6/Factory | Lost 4 parts (1n1u2w) 13397 | -6/Factory | Cargo convoy interrupted 13436 | -6/Factory | Sucked down chute 13436 | -6/Factory | Entered Waste 13451 | -6/Waste | EMP discharged 13456 | -6/Waste | Spotted C-40 Crusher 13457 | -6/Waste | Spotted C-40 Crusher 13470 | -6/Waste | Spotted C-40 Crusher 13470 | -6/Waste | Spotted C-40 Crusher 13529 | -6/Waste | Spotted C-40 Crusher 13549 | -6/Waste | Crushed by Compactor (1 part destroyed, 1 dropped) 13550 | -6/Waste | Spotted C-40 Crusher 13551 | -6/Waste | EMP discharged 13557 | -6/Waste | Crushed by Compactor (1 part destroyed, 2 dropped) 13558 | -6/Waste | Released all parts (8) 13588 | -6/Waste | Lost 3 parts (3n) 13590 | -6/Waste | Discovered new exit (range 12) 13596 | -6/Waste | Entered Factory 13612 | -6/Factory | Zion hero teleported in (NK-0LA) 13666 | -6/Factory | Discovered new exit (range 50) 13808 | -6/Factory | Zion Light squad teleported in 13858 | -6/Factory | Build established: Mutant 13920 | -6/Factory | Entered Lower Caves 13920 | -6/Lower Caves | Accompanied by 4 allies (NK-0LA) 14411 | -6/Lower Caves | Build established: Messiah-Mutant 14458 | -6/Lower Caves | Discovered new exit (range 12) 15343 | -6/Lower Caves | Encountered a Warlord checkpoint 16081 | -6/Lower Caves | Identified exit to Lower Caves 16083 | -6/Lower Caves | Entered another Lower Caves area 16083 | -6/Lower Caves | Accompanied by 3 allies (NK-0LA) 16099 | -6/Lower Caves | Discovered new exit (range 10) 16114 | -6/Lower Caves | Identified exit to Factory 16410 | -6/Lower Caves | Spotted B-75 Beast 16433 | -6/Lower Caves | Allies destroyed B-75 Beast 16850 | -6/Lower Caves | Encountered a Warlord checkpoint 17168 | -6/Lower Caves | Discovered new exit (range 13) 17191 | -6/Lower Caves | Learned Factory garrison access intel 17210 | -6/Lower Caves | Identified exit to Data Miner 17248 | -6/Lower Caves | Enhanced Grunt warped into view, answering call for help 17250 | -6/Lower Caves | Enhanced Grunt warped into view, answering call for help 17486 | -6/Lower Caves | Learned location of 1 exit from Factory 17759 | -6/Lower Caves | Entered Data Miner 17759 | -6/Data Miner | Accompanied by 4 allies (NK-0LA) 17759 | -6/Data Miner | Discovered new exit (range 6) 17767 | -6/Data Miner | Identified exit to Proximity Caves 17783 | -6/Data Miner | Met Data Miner 17823 | -6/Data Miner | Learned location of Section 7 (-2) 17823 | -6/Data Miner | Acquired the access code to Warlord's prototype stash 17843 | -6/Data Miner | Received God Mode back door access code from Data Miner 17886 | -6/Data Miner | Entered Proximity Caves 17886 | -5/Proximity Caves | Accompanied by 4 allies (NK-0LA) 17981 | -5/Proximity Caves | Spotter reported a threat 17991 | -5/Proximity Caves | Spotter reported a threat 18039 | -5/Proximity Caves | Attracted the attention of an 0b10 outpost 18583 | -5/Proximity Caves | Learned 12 Factory zone layouts 18824 | -5/Proximity Caves | Discovered exit to Factory (range 14) 19177 | -5/Proximity Caves | Entered Factory 19177 | -5/Factory | Accompanied by 2 allies (NK-0LA) 19177 | -5/Factory | Evolved 2 slots: Utility x1, Weapon x1 19178 | -5/Factory | Identified exit to Upper Caves 19180 | -5/Factory | Identified exit to Extension 19181 | -5/Factory | Loaded intel: 4 garrison access locations 19772 | -5/Factory | Build established: Derelict-Mutant 19803 | -5/Factory | Garrison activated, responded to threat 19895 | -5/Factory | Discovered new exit (range 15) 19921 | -5/Factory | Identified exit to Factory 20084 | -5/Factory | Zion Offense Resupply teleported in 20214 | -5/Factory | Zion Kinetic Resupply teleported in 20250 | -5/Factory | P-70 Sage assimilated allied 7R-AQH(A) 20567 | -5/Factory | Build established: Derelict-Skirmisher 20590 | -5/Factory | Terminal network hard line cut 20656 | -5/Factory | Entered Upper Caves 20656 | -5/Upper Caves | Accompanied by 1 ally (NK-0LA) 20729 | -5/Upper Caves | Learned 4 Factory zone layouts 20891 | -5/Upper Caves | Learned location of Armory (-4) 20926 | -5/Upper Caves | Attracted the attention of an 0b10 base 21209 | -5/Upper Caves | Build established: Skirmisher 21773 | -5/Upper Caves | Ambushed by research squad 21826 | -5/Upper Caves | Lost 5 parts (1p1n2u1w) 22096 | -5/Upper Caves | Discovered new exit (range 3) 22100 | -5/Upper Caves | Identified exit to Upper Caves 23601 | -5/Upper Caves | Entered another Upper Caves area 23620 | -5/Upper Caves | Discovered exit to Factory (range 6) 23958 | -5/Upper Caves | Found Alien Artifact 23960 | -5/Upper Caves | Identified Dimensional Node Initializer 23960 | -5/Upper Caves | Initialized slip node 24041 | -5/Upper Caves | Learned Factory security intel 24086 | -5/Upper Caves | Discovered new exit (range 9) 24098 | -5/Upper Caves | Identified exit to Warlord 24108 | -5/Upper Caves | Learned location of 1 exit from Factory 24288 | -5/Upper Caves | Entered Warlord 24448 | -5/Warlord | System corruption cleaned by Quarantine Array 24596 | -5/Warlord | Discovered new exit (range 8) 24608 | -5/Warlord | Identified exit to Proximity Caves 25238 | -5/Warlord | Opened side exit 25588 | -5/Warlord | Warlord's base attacked by MAIN.C 25938 | -5/Warlord | Warlord forces counterattacked 26060 | -5/Warlord | Rebuked by Warlord 26263 | -5/Warlord | Warlord base infiltrated, sounded retreat 26307 | -5/Warlord | Learned Armory trap positions 26307 | -5/Warlord | Learned Research emergency access door positions 26309 | -5/Warlord | Learned 4 Armory zone layouts 26311 | -5/Warlord | Learned Testing security intel 26311 | -5/Warlord | Learned Armory terminal intel 26311 | -5/Warlord | Learned Armory fabricator intel 26336 | -5/Warlord | Opened Warlord's prototype stash 26343 | -5/Warlord | Found Prototype Reactor 26343 | -5/Warlord | Identified Vortex Chain Reactor 26349 | -5/Warlord | Found Prototype Processor 26349 | -5/Warlord | Identified Exp. Targeting Computer 26372 | -5/Warlord | Found Prototype Hackware 26372 | -5/Warlord | Identified Ghost Barrier 26460 | -5/Warlord | Found Prototype Energy Gun 26460 | -5/Warlord | Identified Vortex Rail 26463 | -5/Warlord | Found Vortex Rail 26471 | -5/Warlord | Found Prototype Energy Gun 26471 | -5/Warlord | Identified Vortex Shotgun 26475 | -5/Warlord | Found Vortex Shotgun 26520 | -5/Warlord | Build established: Commander-Skirmisher 26797 | -5/Warlord | Found Prototype Device 26797 | -5/Warlord | Identified Minesniffer Drone Bay 26907 | -5/Warlord | P-70 Sage assimilated allied Beamer 6a 27040 | -5/Warlord | Spotted Executioner 27062 | -5/Warlord | Destroyed Executioner 27116 | -5/Warlord | Spotted Striker 27138 | -5/Warlord | Destroyed Striker 27159 | -5/Warlord | Destroyed 22 combat bots 27165 | -5/Warlord | Spotted Executioner 27168 | -5/Warlord | Released all parts (16) 27169 | -5/Warlord | Spotted Striker 27170 | -5/Warlord | Crushed by falling debris 27171 | -5/Warlord | Core integrity fell below 50% 27188 | -5/Warlord | Core integrity fell below 20% 27193 | -5/Warlord | Destroyed by G-50 Soldier with Heavy Laser Last Messages --------------- 27177_ Reactivated God Mode. 27177_ Slug penetrates Earth. 27179_ Slug penetrates God Mode. 27180_ Slug penetrates S-43 Plague. 27180_ S-43 Plague suffers critical hit (Destroy). 27182_ G-50 Soldier misfires. 27182_ Slug penetrates God Mode. 27183_ God Mode destroyed. 27185_ Penetrated by Slug. 27186_ P-70 Sage resets G-50 Soldier, system corruption cleaned. 27188_ Critical hit (Burn: +37). 27189_ Slug penetrates Machine. 27189_ Slug Cannon destroyed. 27191_ Penetrated by Slug. 27191_ P-70 Sage resets S-27 Virus, system corruption cleaned. 27192_ Penetrated by Slug. [Achievement: 20k Club] Map ----- +----------------------------------------------------+ | | | | | | | | | | | | | | | ??????????????????????######????################?? | | ??????????#######?????#] !#???# """ # #?? | | ??????????#!!"""##????#] !#???# """ # #?? | | ??????????#!! X "#????#! #???# """ # #?? | | ??????????#"" !#????" #???# # #?? | | ??????????#""X !#??# ##+####### ##+########?? | | ??????????#""" !#?# ### + ## #?? | | ????????#?##"# ### ## "^ # # #?? | | ????????# ?#""#+##"#####^ ##+##### ^#?? | | ????????# ## "*% !%*! %^ ![[ #?? | | ????????# # [![!|==| = =%[ * ### | | ????????# # !=!##""%######### ! | | ????????# " !==/"############ ! ^### | | ????????# " /=%%##" """""""####+### ####+###+##?? | | ?????????#" %==###" " "#### ######## ### ?? | | ?????????#"=% "# ## #???#!! !## # | | ???##"####%"[" "## K "## #???#!! !## &# | | ???# ^ = %% #" "## " "#???#!! !## &# | | ???#^""^ ^ %%* #" @ "## "!"????#""""####### | | ???# ^""^ !%==%# "## """????#""""#?????? | | ???# """^ |=!%]## % "####??????######?????? | | ???# """^ ![==]# % "#????????????????????? | | ???# " ]%%[%!#*s%] s "#????????????????????? | | ???# "" *!]==!!# %%xEsg "#??????##########????? | | ???# ]!%== #%%=s! pg "#??????# #???## | | ??####"##"# =!=%=#####g ####??????# #??? | | ??# !!*=[!= # #???????# ## "" | | ??# !!%* #g # #????# ] ! ## "" | | ??# "%%*%! gg # ######### ! ## """ | | ??" #*[[! g # [] ! ## """ | | ??# [ #!%%!% !! # ## "" | | ??# ! ##*=! =% # ## "" | | ??" ## # ## =!* % # ## | | ??# | ## #" |= #####+######### | | ##########+"# " %/ ### | | # # # # ! / | | # " # ### | | # ##"# # ## # # ####?# | | # ## ###"## #? ## ##???#####+#+######## | | ###+#### #????# ?###?# "#?##????# ## | | ### #????# ?????# "#???????# ## "" | | # ^ #???????????#"X""#???????# ## "" | | # ^ ##??????????######???????# ## "" | +----------------------------------------------------+ Best States ------------- Heat Dissipation 78 Energy Generation 55 Energy Capacity 1100 Matter Stores 300 Matter Capacity 300 Sight Range 24 Robot Scan Range 16 Terrain Scan Range 20 Terrain Scan Density 10 Armor Coverage 825 Resistance: KI 25 Evasion (%) 55 Targeting Accuracy 12 Target Analysis 10 Recoil Reduction 10 Matter Filtering 30 Offensive Hacking 11 Item Schematics ----------------- Imp. KE Penetrator | -7/Zion | Archive Flexi-carbon Leg | -7/Zion | Archive Imp. Field Recycling Unit | -7/Zion | Archive Adv. System Shield | -7/Zion | Archive Imp. Melee Analysis Suite | -7/Zion | Archive Adv. Heat Sink | -7/Zion | Archive Launcher Guidance Computer | -7/Zion | Archive System Guard | -7/Zion | Archive Xenon Bombardment Thruster | -7/Zion | Archive Imp. Trap Scanner | -7/Zion | Archive Hvy. Laser | -7/Zion | Archive Hvy. Treads | -7/Zion | Archive Plasma Rifle | -7/Zion | Archive Imp. Carbon-fiber Leg | -7/Zion | Archive Transmission Jammer | -7/Zion | Archive Fusion Compressor | -7/Zion | Archive Combat Drone Bay | -6/Data Miner | Free Lgt. Regenerative Plating | -6/Data Miner | Free Cld. Nuclear Pulse Thruster | -6/Data Miner | Free Prc. Matter Filter | -6/Data Miner | Free Cld. Plasma Rifle | -6/Data Miner | Free Imp. Gyrokinetic Inverter | -6/Data Miner | Free Graphene Brace | -6/Data Miner | Free Hardcell Cannon | -6/Data Miner | Free Enh. Gauss Cannon | -6/Data Miner | Free Antimatter Reactor | -6/Data Miner | Free Biometal Leg | -6/Data Miner | Free Biometal Medium Treads | -6/Data Miner | Free Robot Schematics ------------------ O-24 Administrator | -7/Zion | Archive B-48 Gladiator | -7/Zion | Archive G-47 Trooper | -7/Zion | Archive Y-64 Sentinel | -6/Data Miner | Free E-15 Imp | -6/Data Miner | Free G-50 Soldier | -6/Data Miner | Free Fabricated ------------ Nothing Repaired ---------- Imp. Sensor Array | 59% | -6/Factory Alien Tech Used ----------------- Core Expander Dimensional Node Initializer Achievements -------------- 20k Club A Powerful Ally? Killing Spree Oh No You Don't! Reappropriation Respectable Loadout Challenges ------------ None Game ------ Seed LargeForceDiverter Manual? 0 Play Time 03:42:07 Cumulative 66.8 hours Start 2025.07.29 @ 21:56:13 End 2025.07.30 @ 02:20:23 Sessions 1 Manual Loads 0 Difficulty Rogue Special Mode None Game No. 87 Rogue 87 Adventurer 0 Explorer 0 Win Type - Total 0 Types 0/0/0/0/0/0/0/0/0/0 Lore% 47 Gallery% 36 Achievement% 37 Wizard Run 0 Options --------- Layout 1 ASCII 0 Keyboard 0 Movement Arrows Keybinds 0 Fullscreen 1 Font 24/Smallcaps Map View 50x35 Zoom Use 0% Tactical HUD 1 Map Filters NONE Filters NONE Steam 1 RUN: 840a385b-edf2-4c29-bda5-11a75dfa8754